Workbook

Sheet Total
C1: Totalbelastning - marin plus fersk | BK1: Vandområde | BM1: Damhusåen
A3: Vandområde | C3: Damhus-åen | D3: Harrestrup Å | E3: Kagsåen | F3: Amager Fælled | G3: Kalvebod Fælled | H3: Nordre Landkanal | I3: Ørestad Kanaler | J3: Søborg-hus Rende | K3: Utterslev Mose | L3: Kalve-boderne | M3: Syd-havnen | N3: Inder-havnen | O3: Nord-havnen | P3: Svane-mølle-bugten | Q3: Øst-havnen | R3: Øresund | S3: SUM | BK3: Adresse | BM3: Nødoverløb Damhusåens renseanlæg | BN3: Hovedoverløb Damhus-ledning | BO3: Åhaven | BP3: Sønderkær | BQ3: Vigerslev Allé | BR3: Gårdstedet | BS3: Heldbovej | BT3: Lykkebovej | BU3: Landlystvej | BV3: Skyttegårdsvej | BW3: Sandhusvej | BX3: Hvidovre station | BY3: Vigerslev-parken N for Dæmningen | BZ3: Nødoverløb ved Torpedo-bygværket | CA3: Roskildevej | CB3: -
A4: Reduceret areal ha | B4: Status | C4: 390.519063 | D4: 249.451869 | E4: 1.809616 | F4: 44.4 | G4: 49.07 | H4: 132.49816 | I4: 49.03 | J4: 22.711001 | K4: 160.227964 | L4: 379.5733156 | M4: 976.857137 | N4: 342.5643117 | O4: 322.907165 | P4: 574.1418674 | Q4: 382.943275 | R4: 0 | S4: =SUM(Tabel118[[#This Row],[Damhus-åen]:[Øresund]]) -> 4078.704745 | BK4: Reduceret areal ha | BL4: Status | BM4: 62.09627 | BN4: 0 | BO4: 4.926299 | BP4: 13.292068 | BQ4: 9.063189 | BR4: 1.454076 | BS4: 1.523395 | BT4: 3.503314 | BU4: 1.93898 | BV4: 4.850912 | BW4: 2.3 | BX4: 1.07056 | BY4: 284.5 | BZ4: 0 | CA4: 0 | CB4: =SUM(BM4:CA4) -> 390.519063
B5: Plan | C5: 390.519063 | D5: 253.726869 | E5: 1.809616 | F5: 44.4 | G5: 49.07 | H5: 132.49816 | I5: 481.003275 | J5: 22.711001 | K5: 160.227964 | L5: 384.0858156 | M5: 1072.574637 | N5: 345.3143117 | O5: 337.667165 | P5: 581.7468674 | Q5: 382.943275 | R5: 0 | S5: =SUM(Tabel118[[#This Row],[Damhus-åen]:[Øresund]]) -> 4640.29802 | BL5: Plan | BM5: 62.09627 | BN5: 0 | BO5: 4.926299 | BP5: 13.292068 | BQ5: 9.063189 | BR5: 1.454076 | BS5: 1.523395 | BT5: 3.503314 | BU5: 1.93898 | BV5: 4.850912 | BW5: 2.3 | BX5: 1.07056 | BY5: 284.5 | BZ5: 0 | CA5: 0 | CB5: 390.519063
B6: Strategi | C6: 390.519063 | D6: 334.951869 | E6: 1.809616 | F6: 44.4 | G6: 49.07 | H6: 132.49816 | I6: 622.3366083 | J6: 22.711001 | K6: 160.227964 | L6: 469.8233156 | M6: 1164.312137 | N6: 468.2309784 | O6: 434.507165 | P6: 726.2418674 | Q6: 382.943275 | R6: 141.3333333 | S6: =SUM(Tabel118[[#This Row],[Damhus-åen]:[Øresund]]) -> 5545.916353 | BL6: Strategi | BM6: 62.09627 | BN6: 0 | BO6: 4.926299 | BP6: 13.292068 | BQ6: 9.063189 | BR6: 1.454076 | BS6: 1.523395 | BT6: 3.503314 | BU6: 1.93898 | BV6: 4.850912 | BW6: 2.3 | BX6: 1.07056 | BY6: 284.5 | BZ6: 0 | CA6: 0 | CB6: 390.519063
A7: Maks udledning l/s | B7: Status | C7: 19800 | D7: 20500 | E7: 800 | F7: 3125 | G7: 5725 | H7: 7227 | I7: 21289.4 | J7: 1360 | K7: 7880 | L7: 15270 | M7: 53740 | N7: 39207 | O7: 23720.74 | P7: 23790 | Q7: 4060 | R7: 1500 | S7: =SUM(Tabel118[[#This Row],[Damhus-åen]:[Øresund]]) -> 248994.14 | BK7: Maks udledning l/s | BL7: Status | BM7: 5000 | BN7: 5000 | BO7: 700 | BP7: 3000 | BQ7: 1200 | BR7: 500 | BS7: 100 | BT7: 300 | BU7: 300 | BV7: 500 | BW7: 500 | BX7: 200 | BY7: 1500 | BZ7: 0 | CA7: 1000 | CB7: 19800
B8: Plan | C8: 19800 | D8: 20760 | E8: 800 | F8: 3125 | G8: 5755 | H8: 7227 | I8: 21289.4 | J8: 1360 | K8: 7880 | L8: 15540 | M8: 74080 | N8: 39377 | O8: 24610.74 | P8: 24250 | Q8: 4060 | R8: 1500 | S8: =SUM(Tabel118[[#This Row],[Damhus-åen]:[Øresund]]) -> 271414.14 | BL8: Plan | BM8: 5000 | BN8: 5000 | BO8: 700 | BP8: 3000 | BQ8: 1200 | BR8: 500 | BS8: 100 | BT8: 300 | BU8: 300 | BV8: 500 | BW8: 500 | BX8: 200 | BY8: 1500 | BZ8: 0 | CA8: 1000 | CB8: 19800
B9: Strategi | C9: 19800 | D9: 25630 | E9: 800 | F9: 3125 | G9: 5755 | H9: 7227 | I9: 29769.4 | J9: 1360 | K9: 7880 | L9: 20690 | M9: 64990 | N9: 46747 | O9: 30420.74 | P9: 32920 | Q9: 4060 | R9: 9980 | S9: =SUM(Tabel118[[#This Row],[Damhus-åen]:[Øresund]]) -> 311154.14 | BL9: Strategi | BM9: 5000 | BN9: 5000 | BO9: 700 | BP9: 3000 | BQ9: 1200 | BR9: 500 | BS9: 100 | BT9: 300 | BU9: 300 | BV9: 500 | BW9: 500 | BX9: 200 | BY9: 1500 | BZ9: 0 | CA9: 1000 | CB9: 19800
A10: Overløbshyppighed antal/år | B10: Status | C10: 17.95 | D10: 49 | E10: 0.2 | F10: 36 | G10: 19 | H10: 56 | I10: 32 | J10: 7 | K10: 11.5 | L10: 7 | M10: 31.1 | N10: 71.8 | O10: 11 | P10: 25 | Q10: 1 | R10: 15 | S10: =SUM(Tabel118[[#This Row],[Damhus-åen]:[Øresund]]) -> 390.55 | BK10: Overløbshyppighed antal/år | BL10: Status | BM10: 2 | BN10: 1 | BO10: 0.5 | BP10: 0.1 | BQ10: 0.1 | BR10: 0.1 | BS10: 0.1 | BT10: 0.1 | BU10: 0.25 | BV10: 0.3 | BW10: 0.1 | BX10: 0.1 | BY10: 0.2 | BZ10: 0 | CA10: 13 | CB10: -
B11: Plan | C11: 17.95 | D11: 5 | E11: 0.2 | F11: 36 | G11: 16 | H11: 56 | I11: 16 | J11: 6 | K11: 6.5 | L11: 2 | M11: 17.3 | N11: 71.8 | O11: 10 | P11: 25 | Q11: 1 | R11: 15 | S11: =SUM(Tabel118[[#This Row],[Damhus-åen]:[Øresund]]) -> 301.75 | BL11: Plan | BM11: 2 | BN11: 1 | BO11: 0.5 | BP11: 0.1 | BQ11: 0.1 | BR11: 0.1 | BS11: 0.1 | BT11: 0.1 | BU11: 0.25 | BV11: 0.3 | BW11: 0.1 | BX11: 0.1 | BY11: 0.2 | BZ11: 0 | CA11: 13 | CB11: -
B12: Strategi | C12: 11.295 | D12: 3.733459596 | E12: 0.1 | F12: 0 | G12: 16 | H12: 55.1 | I12: 15.5 | J12: 2.4 | K12: 2.95 | L12: 0.8333333333 | M12: 7.421111111 | N12: 32.85 | O12: 5 | P12: 9 | Q12: 0.5 | R12: 15 | S12: =SUM(Tabel118[[#This Row],[Damhus-åen]:[Øresund]]) -> 177.682904 | BL12: Strategi | BM12: 1 | BN12: 0.1 | BO12: 0.05 | BP12: 0.01 | BQ12: 0.01 | BR12: 0.01 | BS12: 0.01 | BT12: 0.01 | BU12: 0.025 | BV12: 0.03 | BW12: 0.01 | BX12: 0.01 | BY12: 0.02 | BZ12: 0 | CA12: 10 | CB12: -
A13: Vand m3/år | B13: Status | C13: 30342 | D13: 241616 | E13: 100 | F13: 110122.3388 | G13: 147457.6551 | H13: 49671.83213 | I13: 411848.1731 | J13: 3467 | K13: 15500 | L13: 98882.09664 | M13: 475531.3673 | N13: 609314.2903 | O13: 377086.3623 | P13: 421256.2921 | Q13: 10047.20203 | R13: 105000 | S13: =SUM(Tabel118[[#This Row],[Damhus-åen]:[Øresund]]) -> 3107242.61 | BK13: Vand m3/år | BL13: Status | BM13: 3408 | BN13: 15000 | BO13: 500 | BP13: 1000 | BQ13: 100 | BR13: 100 | BS13: 100 | BT13: 100 | BU13: 500 | BV13: 100 | BW13: 100 | BX13: 100 | BY13: 500 | BZ13: 0 | CA13: 8734 | CB13: =SUM(BM13:CA13) -> 30342
B14: Plan | C14: 30342 | D14: 47328.58899 | E14: 100 | F14: 110122.3388 | G14: 162678.4343 | H14: 49671.83213 | I14: 411848.1731 | J14: 2867 | K14: 7166.666667 | L14: 55839.65497 | M14: 202153.9723 | N14: 619720.4305 | O14: 437995.3716 | P14: 445552.2921 | Q14: 10047.20203 | R14: 105000 | S14: =SUM(Tabel118[[#This Row],[Damhus-åen]:[Øresund]]) -> 2698433.958 | BL14: Plan | BM14: 3408 | BN14: 15000 | BO14: 500 | BP14: 1000 | BQ14: 100 | BR14: 100 | BS14: 100 | BT14: 100 | BU14: 500 | BV14: 100 | BW14: 100 | BX14: 100 | BY14: 500 | BZ14: 0 | CA14: 8734 | CB14: 30342
B15: Strategi | C15: 4304 | D15: 313742.9288 | E15: 50 | F15: 163510.417 | G15: 170812.3561 | H15: 47576.42374 | I15: 864067.1318 | J15: 600 | K15: 2616.666667 | L15: 338844.4848 | M15: 732216.9447 | N15: 906261.7548 | O15: 639679.5304 | P15: 621743.9067 | Q15: 6972.362135 | R15: 545453.75 | S15: =SUM(Tabel118[[#This Row],[Damhus-åen]:[Øresund]]) -> 5358452.658 | BL15: Strategi | BM15: 1704 | BN15: 1500 | BO15: 50 | BP15: 100 | BQ15: 10 | BR15: 10 | BS15: 10 | BT15: 10 | BU15: 50 | BV15: 10 | BW15: 10 | BX15: 10 | BY15: 50 | BZ15: 0 | CA15: 780 | CB15: 4304
A16: COD kg/år | B16: Status | C16: 1517.1 | D16: 12080.8 | E16: 5 | F16: 17619.57421 | G16: 23593.22482 | H16: 7417.293141 | I16: 53630.2677 | J16: 173.35 | K16: 775 | L16: 6648.125463 | M16: 28434.65058 | N16: 69117.98645 | O16: 43555.73797 | P16: 22287.36673 | Q16: 892.1123253 | R16: 5413250 | S16: =SUM(Tabel118[[#This Row],[Damhus-åen]:[Øresund]]) -> 5700997.589 | BK16: COD kg/år | BL16: Status | BM16: 170 | BN16: 750 | BO16: 25 | BP16: 50 | BQ16: 5 | BR16: 5 | BS16: 5 | BT16: 5 | BU16: 25 | BV16: 5 | BW16: 5 | BX16: 5 | BY16: 25 | BZ16: 0 | CA16: 437 | CB16: 1517
B17: Plan | C17: 1517.1 | D17: 4896.429449 | E17: 5 | F17: 17619.57421 | G17: 26028.54949 | H17: 7417.293141 | I17: 53630.2677 | J17: 143.35 | K17: 358.3333333 | L17: 7246.003379 | M17: 17902.35973 | N17: 71288.29346 | O17: 55511.18844 | P17: 28122.16673 | Q17: 892.1123253 | R17: 3342250 | S17: =SUM(Tabel118[[#This Row],[Damhus-åen]:[Øresund]]) -> 3634828.021 | BL17: Plan | BM17: 170 | BN17: 750 | BO17: 25 | BP17: 50 | BQ17: 5 | BR17: 5 | BS17: 5 | BT17: 5 | BU17: 25 | BV17: 5 | BW17: 5 | BX17: 5 | BY17: 25 | BZ17: 0 | CA17: 437 | CB17: 1517
B18: Strategi | C18: 215.6375 | D18: 48687.14644 | E18: 2.5 | F18: 26161.66672 | G18: 27329.97697 | H18: 7559.207798 | I18: 132893.1086 | J18: 30 | K18: 130.8333333 | L18: 54076.9759 | M18: 114469.8034 | N18: 134247.6373 | O18: 100819.4299 | P18: 91772.97507 | Q18: 757.8579416 | R18: 3102272.688 | S18: =SUM(Tabel118[[#This Row],[Damhus-åen]:[Øresund]]) -> 3841427.444 | BL18: Strategi | BM18: 85 | BN18: 75 | BO18: 2 | BP18: 5.9 | BQ18: 0.5 | BR18: 0.5 | BS18: 0.5 | BT18: 0.5 | BU18: 2.5 | BV18: 0.5 | BW18: 0.5 | BX18: 0.5 | BY18: 2.5 | BZ18: 0 | CA18: 39 | CB18: 215.4
A19: Total N kg/år | B19: Status | C19: 60.684 | D19: 483.232 | E19: 0.2 | F19: 1101.223388 | G19: 1474.576551 | H19: 458.1583213 | I19: 3226.449731 | J19: 6.934 | K19: 31 | L19: 321.6929664 | M19: 1287.470036 | N19: 4029.702903 | O19: 2550.639623 | P19: 931.5709207 | Q19: 48.44002033 | R19: 804210 | S19: =SUM(Tabel118[[#This Row],[Damhus-åen]:[Øresund]]) -> 820221.9745 | BK19: Total N kg/år | BL19: Status | BM19: 6.8 | BN19: 30 | BO19: 1 | BP19: 2 | BQ19: 0.2 | BR19: 0.2 | BS19: 0.2 | BT19: 0.2 | BU19: 1 | BV19: 0.2 | BW19: 0.2 | BX19: 0.2 | BY19: 1 | BZ19: 0 | CA19: 17.5 | CB19: 60.7
B20: Plan | C20: 60.684 | D20: 278.657178 | E20: 0.2 | F20: 1101.223388 | G20: 1626.784343 | H20: 458.1583213 | I20: 3226.449731 | J20: 5.734 | K20: 14.33333333 | L20: 435.6080831 | M20: 975.1923892 | N20: 4170.515183 | O20: 3320.457642 | P20: 1316.162921 | Q20: 48.44002033 | R20: 566210 | S20: =SUM(Tabel118[[#This Row],[Damhus-åen]:[Øresund]]) -> 583248.6005 | BL20: Plan | BM20: 6.8 | BN20: 30 | BO20: 1 | BP20: 2 | BQ20: 0.2 | BR20: 0.2 | BS20: 0.2 | BT20: 0.2 | BU20: 1 | BV20: 0.2 | BW20: 0.2 | BX20: 0.2 | BY20: 1 | BZ20: 0 | CA20: 17.5 | CB20: 60.7
B21: Strategi | C21: 8.6255 | D21: 3027.485858 | E21: 0.1 | F21: 1635.10417 | G21: 1708.123561 | H21: 471.9082374 | I21: 8251.025318 | J21: 1.2 | K21: 5.233333333 | L21: 3378.398181 | M21: 7127.394336 | N21: 8280.490748 | O21: 6285.607804 | P21: 5656.999067 | Q21: 43.70762135 | R21: 526090.9075 | S21: =SUM(Tabel118[[#This Row],[Damhus-åen]:[Øresund]]) -> 571972.3112 | BL21: Strategi | BM21: 3.4 | BN21: 3 | BO21: 0.08 | BP21: 0.2 | BQ21: 0.02 | BR21: 0.02 | BS21: 0.02 | BT21: 0.02 | BU21: 0.1 | BV21: 0.02 | BW21: 0.02 | BX21: 0.02 | BY21: 0.1 | BZ21: 0 | CA21: 1.6 | CB21: 8.62
A22: Total P kg/år | B22: Status | C22: 15.171 | D22: 870.808 | E22: 0.05 | F22: 275.305847 | G22: 368.6441378 | H22: 114.5395803 | I22: 806.6124328 | J22: 1.7335 | K22: 7.75 | L22: 80.4232416 | M22: 321.8675091 | N22: 1007.425726 | O22: 637.6599057 | P22: 232.8927302 | Q22: 12.11000508 | R22: 133852.5 | S22: =SUM(Tabel118[[#This Row],[Damhus-åen]:[Øresund]]) -> 138605.4936 | BK22: Total P kg/år | BL22: Status | BM22: 1.7 | BN22: 7.5 | BO22: 0.25 | BP22: 0.5 | BQ22: 0.05 | BR22: 0.05 | BS22: 0.05 | BT22: 0.05 | BU22: 0.25 | BV22: 0.05 | BW22: 0.05 | BX22: 0.05 | BY22: 0.25 | BZ22: 0 | CA22: 4.4 | CB22: 15.2
B23: Plan | C23: 15.171 | D23: 12.16429449 | E23: 0.05 | F23: 275.305847 | G23: 406.6960859 | H23: 114.5395803 | I23: 806.6124328 | J23: 1.4335 | K23: 3.583333333 | L23: 108.9020208 | M23: 239.7980973 | N23: 1042.628796 | O23: 830.1144104 | P23: 329.0407302 | Q23: 12.11000508 | R23: 55052.5 | S23: =SUM(Tabel118[[#This Row],[Damhus-åen]:[Øresund]]) -> 59250.65013 | BL23: Plan | BM23: 1.7 | BN23: 7.5 | BO23: 0.25 | BP23: 0.5 | BQ23: 0.05 | BR23: 0.05 | BS23: 0.05 | BT23: 0.05 | BU23: 0.25 | BV23: 0.05 | BW23: 0.05 | BX23: 0.05 | BY23: 0.25 | BZ23: 0 | CA23: 4.4 | CB23: 15.2
B24: Strategi | C24: 2.156375 | D24: 6.871464394 | E24: 0.025 | F24: 408.7760425 | G24: 427.0308902 | H24: 117.9770593 | I24: 2062.756329 | J24: 0.3 | K24: 1.308333333 | L24: 844.5995454 | M24: 1781.848584 | N24: 2070.122687 | O24: 1571.401951 | P24: 1414.249767 | Q24: 10.92690534 | R24: 51472.72688 | S24: =SUM(Tabel118[[#This Row],[Damhus-åen]:[Øresund]]) -> 62193.07781 | BL24: Strategi | BM24: 0.8 | BN24: 0.75 | BO24: 0.02 | BP24: 0.06 | BQ24: 0.005 | BR24: 0.005 | BS24: 0.005 | BT24: 0.005 | BU24: 0.025 | BV24: 0.005 | BW24: 0.005 | BX24: 0.005 | BY24: 0.025 | BZ24: 0 | CA24: 0.4 | CB24: =SUM(BM24:CA24) -> 2.115
